fUSD/lending_fUSD_20260128
["ID","MTS","AMOUNT","RATE_DAILY","PERIOD"]
[403831885,1769574640170,-523.73442631,0.00015563,2]
[403831886,1769574640181,-500.0,0.00015563,2]
[403831887,1769574640190,-500.0,0.00015563,2]
[403831888,1769574640200,-558.27604603,0.00015563,2]
[403831889,1769574640211,-362.02109802,0.00015565,2]
[403831890,1769574640221,-14060.57271962,0.00015565,2]
[403831891,1769574640231,-500.0,0.00015579,2]
[403831892,1769574640240,-517.8321028,0.00015579,2]
[403831893,1769574640251,-151.0,0.00015579,2]
[403831894,1769574640261,-151.0,0.00015579,2]
[403831895,1769574640271,-151.0,0.00015579,2]
[403831896,1769574640280,-151.0,0.00015579,2]
[403831897,1769574640291,-151.0,0.00015579,2]
[403831898,1769574640302,-151.0,0.00015579,2]
[403831899,1769574640312,-500.0,0.00015579,2]
[403831900,1769574640323,-151.0,0.00015579,2]
[403831901,1769574640333,-513.90151106,0.00015579,2]
[403831902,1769574640341,-503.77912883,0.00015579,2]
[403831903,1769574640350,-151.0,0.00015579,2]
[403831904,1769574640358,-151.0,0.00015579,2]
[403831905,1769574640368,-151.0,0.00015579,2]
[403831906,1769574640377,-151.0,0.00015579,2]
[403831907,1769574640387,-151.0,0.00015579,2]
[403831908,1769574640397,-151.0,0.00015579,2]
[403831909,1769574640406,-151.0,0.00015579,2]
[403831910,1769574640416,-151.0,0.00015579,2]
[403831911,1769574640426,-151.0,0.00015579,2]
[403831912,1769574640437,-151.0,0.00015579,2]
[403831913,1769574640447,-151.0,0.00015579,2]
[403831915,1769574640456,-151.0,0.00015579,2]
[403831916,1769574640467,-154.12320285,0.00015579,2]
[403831917,1769574640478,-206.24263098,0.00015579,2]
[403831918,1769574640487,-151.0,0.00015579,2]
[403831919,1769574640496,-160.45551813,0.00015579,2]
[403831920,1769574640506,-202.2917898,0.00015579,2]
[403831921,1769574640517,-188.56873349,0.00015586,2]
[403831922,1769574640528,-500.0,0.00015586,2]
[403831923,1769574640541,-207.52123892,0.00015586,2]
[403831924,1769574640551,-262.8346166,0.00015586,2]
[403831925,1769574640560,-500.0,0.00015586,2]
[403831926,1769574640570,-236.04408561,0.00015586,2]
[403831927,1769574640579,-500.0,0.00015587,2]
[403831928,1769574640588,-500.0,0.00015587,2]
[403831930,1769574640597,-500.0,0.00015587,2]
[403831932,1769574640606,-519.88726717,0.00015587,2]
[403831933,1769574640615,-504.1508484,0.00015587,2]
[403831934,1769574640624,-500.0,0.00015587,2]
[403831935,1769574640633,-500.0,0.00015587,2]
[403831936,1769574640642,-500.0,0.00015587,2]
[403831937,1769574640651,-500.0,0.00015587,2]
[403831938,1769574640660,-500.0,0.00015587,2]
[403831939,1769574640669,-500.0,0.00015587,2]
[403831940,1769574640678,-500.0,0.00015587,2]
[403831941,1769574640688,-508.82801883,0.00015587,2]
[403831942,1769574640697,-500.0,0.00015587,2]
[403831943,1769574640707,-500.0,0.00015587,2]
[403831944,1769574640716,-500.0,0.00015587,2]
[403831945,1769574640725,-510.97406699,0.00015587,2]
[403831946,1769574640734,-500.0,0.00015587,2]
[403831947,1769574640743,-500.0,0.00015587,2]
[403831948,1769574640752,-500.0,0.00015587,2]
[403831949,1769574640761,-500.0,0.00015587,2]
[403831950,1769574640770,-528.82732304,0.00015587,2]
[403831951,1769574640779,-500.0,0.00015587,2]
[403831952,1769574640788,-500.0,0.00015587,2]
[403831953,1769574640797,-474.24179725,0.00015587,2]
[403831954,1769574640806,-500.0,0.00015587,2]
[403831955,1769574640815,-500.0,0.00015587,2]
[403831956,1769574640824,-208.46996814,0.00015587,2]
[403831957,1769574640833,-897.92,0.00015587,2]
[403831958,1769574640842,-500.0,0.00015587,2]
[403831959,1769574640852,-500.0,0.00015587,2]
[403831960,1769574640863,-355.21403355,0.00015587,2]
[403831961,1769574640871,-500.0,0.00015587,2]
[403831962,1769574640880,-500.0,0.00015587,2]
[403831963,1769574640891,-500.0,0.00015587,2]
[403831964,1769574640901,-500.0,0.00015587,2]
[403831965,1769574640911,-500.0,0.00015587,2]
[403831966,1769574640922,-500.0,0.00015587,2]
[403831967,1769574640933,-500.0,0.00015587,2]
[403831968,1769574640942,-500.0,0.00015587,2]
[403831969,1769574640953,-500.0,0.00015587,2]
[403831970,1769574640962,-500.0,0.00015587,2]
[403831971,1769574640972,-509.24863129,0.00015587,2]
[403831972,1769574640983,-508.81411293,0.00015587,2]
[403831973,1769574640992,-500.0,0.00015587,2]
[403831974,1769574641001,-500.0,0.00015587,2]
[403831975,1769574641010,-500.0,0.00015587,2]
[403831976,1769574641019,-500.0,0.00015587,2]
[403831977,1769574641028,-623.96318199,0.00015587,2]
[403831978,1769574641037,-500.0,0.00015587,2]
[403831979,1769574641046,-500.0,0.00015587,2]
[403831980,1769574641055,-500.0,0.00015587,2]
[403831981,1769574641064,-500.0,0.00015587,2]
[403831982,1769574641073,-500.0,0.00015587,2]
[403831983,1769574641081,-500.0,0.00015587,2]
[403831984,1769574641090,-500.0,0.00015587,2]
[403831985,1769574641099,-505.25985353,0.00015587,2]
[403831986,1769574641108,-505.07555543,0.00015587,2]
[403831987,1769574641118,-500.0,0.00015587,2]
[403831988,1769574641129,-500.0,0.00015587,2]
[403831989,1769574641139,-500.0,0.00015587,2]
[403831990,1769574641149,-500.0,0.00015587,2]
[403831991,1769574641159,-265.38774742,0.00015587,2]
[403831992,1769574641170,-500.0,0.00015587,2]
[403831993,1769574641423,-504.91559011,0.00015587,2]
[403831994,1769574641516,-500.0,0.00015587,2]
[403831995,1769574641526,-504.97053901,0.00015587,2]
[403831996,1769574641535,-500.0,0.00015587,2]
[403831997,1769574641545,-537.84011812,0.00015587,2]
[403831998,1769574641555,-500.0,0.00015587,2]
[403831999,1769574641564,-500.0,0.00015587,2]
[403832000,1769574641573,-500.0,0.00015587,2]
[403832001,1769574641583,-500.0,0.00015587,2]
[403832002,1769574641592,-500.0,0.00015587,2]
[403832003,1769574641602,-502.53550633,0.00015587,2]
[403832004,1769574641611,-500.0,0.00015587,2]
[403832005,1769574641620,-151.0,0.00015638,2]
[403832006,1769574641629,-180.48876965,0.00015665,2]
[403832007,1769574641639,-578.36386729,0.00015803,2]
[403832008,1769574641648,-500.0,0.00015803,2]
[403832009,1769574641657,-14060.5727196,0.00015824,2]
[403832010,1769574641666,-897.92,0.00015861,2]
[403832011,1769574641676,-1061.0,0.00015962,2]
[403832012,1769574641685,-328.41754599,0.0001599,2]
[403832013,1769574641694,-996.0,0.00015994,2]
[403832014,1769574641703,-59093.7017155,0.00016,4]
[403832015,1769574641712,-312.0,0.00016078,2]
[403832016,1769574641722,-14060.5727196,0.00016084,2]
[403832017,1769574641731,-440.0,0.00016096,2]
[403832018,1769574641740,-29012.23063657,0.00016106,2]
[403832019,1769574641749,-1000.0,0.00016108,2]
[403832020,1769574641758,-897.92,0.00016135,2]
[403832021,1769574641768,-500.0,0.00016198,2]
[403832022,1769574641777,-1000.0,0.00016258,2]
[403832023,1769574641786,-14060.5727196,0.00016343,2]
[403832024,1769574641796,-500.0,0.00016373,2]
[403832025,1769574641807,-506.74896845,0.00016373,2]
[403832026,1769574641816,-500.93042604,0.00016373,2]
[403832027,1769574641825,-193.55647902,0.00016373,2]
[403832028,1769574641834,-897.92,0.00016409,2]
[403832029,1769574641844,-236.38,0.00016414,2]
[403832030,1769574641853,-1500.0,0.00016423,2]
[403832031,1769574641863,-1726.552638,0.00016438,2]
[403832032,1769574641872,-2395.93,0.00016438,2]
[403832033,1769574641881,-2395.93,0.00016438,2]
[403832034,1769574641890,-2395.93,0.00016438,2]
[403832035,1769574641899,-2395.93,0.00016438,2]
[403832036,1769574641910,-2395.93,0.00016438,2]
[403832037,1769574641921,-2395.93,0.00016438,2]
[403832038,1769574641929,-2395.93,0.00016438,2]
[403832039,1769574641938,-2395.93,0.00016438,2]
[403832040,1769574641947,-2395.93,0.00016438,2]
[403832041,1769574641957,-2395.93,0.00016438,2]
[403832042,1769574641966,-2395.93,0.00016438,2]
[403832043,1769574641976,-2395.93,0.00016438,2]
[403832044,1769574641985,-2395.93,0.00016438,2]
[403832045,1769574641994,-2395.93,0.00016438,2]
[403832046,1769574642003,-2395.93,0.00016438,2]
[403832047,1769574642012,-2395.93,0.00016438,2]
[403832048,1769574642023,-2395.93,0.00016438,2]
[403832049,1769574642032,-2395.93,0.00016438,2]
[403832050,1769574642042,-2395.93,0.00016438,2]
[403832051,1769574642052,-2395.93,0.00016438,2]
[403832052,1769574642061,-2395.93,0.00016438,2]
[403832053,1769574642071,-2395.93,0.00016438,2]
[403832054,1769574642084,-2395.93,0.00016438,2]
[403832055,1769574642093,-2396.0314044,0.00016438,2]
[403832056,1769574642104,-544.60815205,0.00016438,2]
[403832057,1769574642115,-500.0,0.00016438,2]
[403832058,1769574642124,-578.39080156,0.00016438,2]
[403832059,1769574642133,-500.0,0.00016438,2]
[403832060,1769574642141,-500.0,0.00016438,2]
[403832061,1769574642151,-510.0,0.00016592,2]
[403832062,1769574642162,-14060.5727196,0.00016603,2]
[403832063,1769574642172,-201.04,0.00016603,2]
[403832064,1769574642182,-200.0,0.00016658,2]
[403832065,1769574642193,-897.92,0.00016683,2]
[403832066,1769574642203,-150.0,0.0001669,2]
[403832067,1769574642212,-500.0,0.0001669,2]
[403832068,1769574642222,-500.0,0.0001669,2]
[403832069,1769574642231,-150.0,0.0001669,2]
[403832070,1769574642240,-500.0,0.0001669,2]
[403832071,1769574642249,-150.0,0.0001669,2]
[403832072,1769574642258,-150.0,0.0001669,2]
[403832073,1769574642267,-500.0,0.0001669,2]
[403832074,1769574642276,-150.0,0.0001669,2]
[403832075,1769574642285,-213.25042822,0.0001669,2]
[403832076,1769574642294,-500.0,0.0001669,2]
[403832077,1769574642303,-243.9850094,0.0001669,2]
[403832078,1769574642312,-150.0,0.0001669,2]
[403832079,1769574642321,-150.0,0.0001669,2]
[403832080,1769574642331,-150.0,0.0001669,2]
[403832081,1769574642340,-150.0,0.0001669,2]
[403832082,1769574642349,-500.0,0.0001669,2]
[403832083,1769574642359,-150.0,0.0001669,2]
[403832084,1769574642368,-202.74321403,0.0001669,2]
[403832085,1769574642377,-157.26285183,0.0001669,2]
[403832086,1769574642389,-500.0,0.0001669,2]
[403832087,1769574642398,-500.0,0.0001669,2]
[403832088,1769574642407,-500.0,0.0001669,2]
[403832089,1769574642416,-500.0,0.0001669,2]
[403832090,1769574642425,-150.0,0.0001669,2]
[403832091,1769574642434,-150.0,0.0001669,2]
[403832092,1769574642443,-500.0,0.0001669,2]
[403832093,1769574642452,-500.0,0.0001669,2]
[403832094,1769574642461,-804.0,0.0001669,2]
[403832095,1769574642472,-500.0,0.0001669,2]
[403832096,1769574642482,-500.0,0.0001669,2]
[403832097,1769574642491,-150.0,0.0001669,2]
[403832098,1769574642500,-150.0,0.0001669,2]
[403832099,1769574642509,-150.0,0.0001669,2]
[403832100,1769574642519,-500.0,0.0001669,2]
[403832101,1769574642528,-500.0,0.0001669,2]
[403832102,1769574642537,-500.0,0.0001669,2]
[403832103,1769574642547,-500.0,0.0001669,2]
[403832104,1769574642557,-500.0,0.0001669,2]
[403832105,1769574642566,-500.0,0.0001669,2]
[403832106,1769574642575,-500.0,0.0001669,2]
[403832107,1769574642584,-500.0,0.0001669,2]
[403832108,1769574642594,-500.0,0.0001669,2]
[403832109,1769574642603,-888.89,0.00016711,2]
[403832110,1769574642612,-166.51,0.00016712,2]
[403832112,1769574642621,-150.0,0.00016745,2]
[403832113,1769574642632,-500.27618672,0.00016745,2]
[403832114,1769574642644,-500.0,0.00016745,2]
[403832115,1769574642654,-150.0,0.00016745,2]
[403832116,1769574642663,-500.0,0.00016745,2]
[403832117,1769574642672,-150.0,0.00016745,2]
[403832118,1769574642682,-150.19824857,0.00016745,2]
[403832119,1769574642691,-500.0,0.00016745,2]
[403832120,1769574642700,-150.0,0.00016745,2]
[403832121,1769574642709,-500.0,0.00016745,2]
[403832122,1769574642719,-150.0,0.00016745,2]
[403832123,1769574642729,-150.0,0.00016745,2]
[403832125,1769574642738,-500.0,0.00016745,2]
[403832127,1769574642747,-150.0,0.00016745,2]
[403832129,1769574642756,-500.0,0.00016745,2]
[403832131,1769574642765,-500.0,0.00016745,2]
[403832132,1769574642775,-500.0,0.00016745,2]
[403832133,1769574642784,-500.0,0.00016745,2]
[403832134,1769574642794,-500.0,0.00016745,2]
[403832135,1769574642803,-500.0,0.00016745,2]
[403832136,1769574642812,-804.0,0.00016745,2]
[403832138,1769574642821,-500.0,0.00016745,2]
[403832139,1769574642833,-500.0,0.00016745,2]
[403832140,1769574642843,-275.0,0.00016745,2]
[403832141,1769574642852,-200.0,0.00016745,2]
[403832142,1769574642862,-500.0,0.00016745,2]
[403832143,1769574642871,-500.0,0.00016745,2]
[403832145,1769574642880,-500.0,0.00016745,2]
[403832147,1769574642890,-502.30791208,0.00016745,2]
[403832149,1769574642899,-502.30789836,0.00016745,2]
[403832150,1769574642909,-500.0,0.00016745,2]
[403832153,1769574642919,-500.0,0.00016745,2]
[403832154,1769574642929,-500.0,0.00016745,2]
[403832155,1769574642938,-500.0,0.00016745,2]
[403832156,1769574642948,-427.29923526,0.00016799,2]
[403832157,1769574642958,-152.40043593,0.000168,2]
[403832159,1769574642967,-500.0,0.000168,2]
[403832161,1769574642977,-240.53397898,0.000168,2]
[403832162,1769574642987,-500.0,0.000168,2]
[403832163,1769574642998,-150.0,0.000168,2]
[403832164,1769574643007,-500.0,0.000168,2]
[403832165,1769574643016,-150.0,0.000168,2]
[403832167,1769574643026,-200.0,0.000168,2]
[403832168,1769574643035,-150.0,0.000168,2]
[403832169,1769574643045,-500.0,0.000168,2]
[403832170,1769574643054,-150.0,0.000168,2]
[403832171,1769574643063,-500.0,0.000168,2]
[403832172,1769574643074,-500.0,0.000168,2]
[403832173,1769574643084,-500.0,0.000168,2]
[403832174,1769574643094,-500.0,0.000168,2]
[403832175,1769574643105,-500.0,0.000168,2]
[403832176,1769574643115,-500.0,0.000168,2]
[403832177,1769574643124,-500.0,0.000168,2]
[403832178,1769574643134,-804.0,0.000168,2]
[403832180,1769574643147,-500.0,0.000168,2]
[403832181,1769574643157,-500.0,0.000168,2]
[403832182,1769574643167,-534.16290156,0.000168,2]
[403832183,1769574643177,-500.0,0.000168,2]
[403832184,1769574643187,-500.0,0.000168,2]
[403832185,1769574643196,-500.0,0.000168,2]
[403832186,1769574643206,-500.0,0.000168,2]
[403832187,1769574643216,-265.63318921,0.000168,2]
[403832188,1769574643225,-500.0,0.000168,2]
[403832189,1769574643235,-253.29674172,0.00016804,2]
[403832190,1769574643245,-250.0,0.00016804,2]
[403832191,1769574643254,-193.0,0.00016804,2]
[403832192,1769574643263,-300.0,0.00016804,2]
[403832193,1769574643273,-195.0,0.00016804,2]
[403832194,1769574643282,-250.0,0.00016804,2]
[403832195,1769574643292,-657.88569144,0.00016804,2]
[403832196,1769574643301,-2500.0,0.00016804,2]
[403832197,1769574643310,-5075.37527096,0.00016804,2]
[403832198,1769574643320,-195.0,0.00016804,2]
[403832199,1769574643329,-150.00281541,0.00016829,2]
[403832200,1769574643339,-500.0,0.00016854,2]
[403832201,1769574643348,-500.0,0.00016854,2]
[403832202,1769574643358,-150.0,0.00016854,2]
[403832203,1769574643367,-500.0,0.00016854,2]
[403832204,1769574643376,-150.0,0.00016854,2]
[403832205,1769574643385,-251.7333692,0.00016854,2]
[403832206,1769574643395,-201.72695087,0.00016854,2]
[403832207,1769574643404,-378.19090217,0.00016854,2]
[403832208,1769574643413,-500.0,0.00016854,2]
[403832209,1769574643422,-500.0,0.00016854,2]
[403832210,1769574643432,-500.0,0.00016854,2]
[403832211,1769574643441,-500.0,0.00016854,2]
[403832212,1769574643451,-377.38838793,0.00016854,2]
[403832213,1769574643460,-500.0,0.00016854,2]
[403832214,1769574643471,-804.0,0.00016854,2]
[403832215,1769574643482,-500.0,0.00016854,2]
[403832216,1769574643491,-500.0,0.00016854,2]
[403832217,1769574643501,-500.0,0.00016854,2]
[403832218,1769574643512,-500.0,0.00016854,2]
[403832219,1769574643523,-500.0,0.00016854,2]
[403832220,1769574643532,-500.0,0.00016854,2]
[403832221,1769574643544,-500.0,0.00016854,2]
[403832222,1769574643555,-14060.5727196,0.00016862,2]
[403832223,1769574643565,-500.0,0.00016909,2]
[403832224,1769574643575,-500.0,0.00016909,2]
[403832225,1769574643585,-235.50390468,0.00016909,2]
[403832226,1769574643595,-500.0,0.00016909,2]
[403832227,1769574643605,-500.0,0.00016909,2]
[403832229,1769574643614,-500.0,0.00016909,2]
[403832231,1769574643624,-500.0,0.00016909,2]
[403832232,1769574643633,-500.0,0.00016909,2]
[403832233,1769574643642,-804.0,0.00016909,2]
[403832234,1769574643652,-500.0,0.00016909,2]
[403832235,1769574643661,-500.0,0.00016909,2]
[403832236,1769574643671,-500.0,0.00016909,2]
[403832237,1769574643681,-500.0,0.00016909,2]
[403832238,1769574643690,-500.0,0.00016909,2]
[403832239,1769574643700,-500.0,0.00016909,2]
[403832240,1769574643709,-420.0,0.00016916,2]
[403832241,1769574643719,-298.0,0.00016916,2]
[403832242,1769574643728,-897.92,0.00016957,2]
[403832243,1769574643737,-500.0,0.00016964,2]
[403832244,1769574643746,-500.0,0.00016964,2]
[403832245,1769574643755,-615.49006321,0.00016964,2]
[403832246,1769574643764,-500.0,0.00016964,2]
[403832247,1769574643774,-500.0,0.00016964,2]
[403832248,1769574643783,-500.0,0.00016964,2]
[403832249,1769574643793,-500.0,0.00016964,2]
[403832250,1769574643803,-804.0,0.00016964,2]
[403832251,1769574643814,-500.0,0.00016964,2]
[403832252,1769574643823,-500.0,0.00016964,2]
[403832253,1769574643833,-500.0,0.00016964,2]
[403832254,1769574643842,-500.0,0.00016964,2]
[403832255,1769574643851,-500.0,0.00016964,2]
[403832256,1769574643860,-500.0,0.00016964,2]
[403832257,1769574643870,-1294.9884,0.00016999,2]
[403832258,1769574643879,-340508.68609009,0.00017,2]
[403832259,1769574643889,-250.0,0.00017,2]
[403832260,1769574643899,-1680.0,0.00017001,2]
[403832261,1769574643908,-500.0,0.00017019,2]
[403832262,1769574643920,-500.0,0.00017019,2]
[403832263,1769574643930,-610.0,0.00017019,2]
[403832264,1769574643939,-500.0,0.00017019,2]
[403832265,1769574643948,-500.0,0.00017019,2]
[403832266,1769574643959,-223.82378677,0.00017019,2]
[403832267,1769574643972,-804.0,0.00017019,2]
[403832268,1769574643984,-500.0,0.00017019,2]
[403832269,1769574643993,-500.0,0.00017019,2]
[403832270,1769574644002,-500.0,0.00017019,2]
[403832271,1769574644011,-500.0,0.00017019,2]
[403832272,1769574644020,-500.0,0.00017019,2]
[403832273,1769574644029,-500.0,0.00017019,2]
[403832274,1769574644045,-500.0,0.00017055,2]
[403832275,1769574644055,-500.0,0.00017055,2]
[403832276,1769574644064,-500.0,0.00017074,2]
[403832277,1769574644073,-211.65460803,0.00017074,2]
[403832278,1769574644082,-500.0,0.00017074,2]
[403832279,1769574644092,-500.0,0.00017074,2]
[403832280,1769574644106,-804.0,0.00017074,2]
[403832281,1769574644117,-500.0,0.00017074,2]
[403832282,1769574644128,-500.0,0.00017074,2]
[403832283,1769574644136,-500.0,0.00017074,2]
[403832284,1769574644146,-500.0,0.00017074,2]
[403832285,1769574644155,-500.0,0.00017074,2]
[403832286,1769574644164,-612.32249886,0.00017074,2]
[403832287,1769574644174,-322.6107,0.00017099,2]
[403832288,1769574644183,-174.61919141,0.00017099,2]
[403832289,1769574644193,-250.0,0.00017099,2]
[403832290,1769574644202,-1000.0,0.00017099,2]
[403832291,1769574644211,-250.0,0.00017099,2]
[403832292,1769574644220,-1000.0,0.00017099,2]
[403832293,1769574644229,-854.2589148,0.00017099,2]
[403832294,1769574644239,-250.0,0.00017099,2]
[403832295,1769574644248,-1000.0,0.00017099,2]
[403832296,1769574644257,-250.0,0.00017099,2]
[403832297,1769574644266,-1000.0,0.00017099,2]
[403832298,1769574644275,-250.0,0.00017099,2]
[403832299,1769574644284,-1000.0,0.00017099,2]
[403832300,1769574644293,-153.67529487,0.00017099,2]
[403832301,1769574644302,-1000.0,0.00017099,2]
[403832302,1769574644312,-1000.0,0.00017099,2]
[403832303,1769574644321,-1000.0,0.00017099,2]
[403832304,1769574644330,-250.0,0.00017099,2]
[403832305,1769574644340,-1000.0,0.00017099,2]
[403832306,1769574644349,-250.0,0.00017099,2]
[403832307,1769574644358,-1000.0,0.00017099,2]
[403832308,1769574644368,-250.0,0.00017099,2]
[403832309,1769574644377,-578.20924308,0.00017099,2]
[403832310,1769574644387,-1000.0,0.00017099,2]
[403832311,1769574644396,-250.0,0.00017099,2]
[403832312,1769574644405,-250.0,0.00017099,2]
[403832313,1769574644415,-250.0,0.00017099,2]
[403832314,1769574644424,-250.0,0.00017099,2]
[403832315,1769574644433,-250.0,0.00017099,2]
[403832316,1769574644443,-500.0,0.00017099,2]
[403832317,1769574644452,-250.0,0.00017099,2]
[403832318,1769574644461,-500.0,0.00017099,2]
[403832319,1769574644472,-500.0,0.00017099,2]
[403832320,1769574644481,-250.0,0.00017099,2]
[403832321,1769574644491,-500.0,0.00017099,2]
[403832322,1769574644500,-500.0,0.00017099,2]
[403832323,1769574644510,-500.0,0.00017099,2]
[403832324,1769574644526,-250.0,0.00017099,2]
[403832325,1769574644535,-500.0,0.00017099,2]
[403832326,1769574644546,-250.0,0.00017099,2]
[403832327,1769574644555,-500.0,0.00017099,2]
[403832328,1769574644564,-500.0,0.00017099,2]
[403832329,1769574644574,-250.0,0.00017099,2]
[403832330,1769574644583,-500.0,0.00017099,2]
[403832331,1769574644594,-500.0,0.00017099,2]
[403832332,1769574644612,-250.0,0.00017099,2]
[403832333,1769574644622,-500.0,0.00017099,2]
[403832334,1769574644632,-500.0,0.00017099,2]
[403832335,1769574644643,-250.0,0.00017099,2]
[403832336,1769574644652,-500.0,0.00017099,2]
[403832337,1769574644662,-500.0,0.00017099,2]
[403832338,1769574644671,-250.0,0.00017099,2]
[403832339,1769574644680,-500.0,0.00017099,2]
[403832340,1769574644690,-500.0,0.00017099,2]
[403832341,1769574644699,-250.0,0.00017099,2]
[403832342,1769574644708,-500.0,0.00017099,2]
[403832343,1769574644717,-500.0,0.00017099,2]
[403832344,1769574644727,-309.92507201,0.00017099,2]
[403832345,1769574644736,-500.0,0.00017099,2]
[403832346,1769574644745,-500.0,0.00017099,2]
[403832347,1769574644754,-500.0,0.00017099,2]
[403832348,1769574644764,-250.0,0.00017099,2]
[403832349,1769574644773,-250.0,0.00017099,2]
[403832350,1769574644782,-250.0,0.00017099,2]
[403832351,1769574644792,-250.0,0.00017099,2]
[403832352,1769574644801,-250.0,0.00017099,2]
[403832353,1769574644811,-250.0,0.00017099,2]
[403832354,1769574644820,-250.0,0.00017099,2]
[403832355,1769574644829,-250.0,0.00017099,2]
[403832356,1769574644838,-250.0,0.00017099,2]
[403832357,1769574644847,-250.0,0.00017099,2]
[403832358,1769574644856,-250.0,0.00017099,2]
[403832359,1769574644865,-207.69124521,0.00017099,2]
[403832360,1769574644874,-250.0,0.00017099,2]
[403832361,1769574644883,-1000.0,0.00017099,2]
[403832362,1769574644892,-209.40437684,0.00017099,2]
[403832363,1769574644901,-250.0,0.00017099,2]
[403832364,1769574644910,-1000.0,0.00017099,2]
[403832365,1769574644919,-250.0,0.00017099,2]
[403832366,1769574644928,-1000.0,0.00017099,2]
[403832367,1769574644937,-250.0,0.00017099,2]
[403832368,1769574644947,-1000.0,0.00017099,2]
[403832369,1769574644956,-250.0,0.00017099,2]
[403832370,1769574644965,-1000.0,0.00017099,2]
[403832371,1769574644974,-250.0,0.00017099,2]
[403832372,1769574644983,-1000.0,0.00017099,2]
[403832373,1769574644992,-1000.0,0.00017099,2]
[403832374,1769574645002,-250.0,0.00017099,2]
[403832375,1769574645011,-1000.0,0.00017099,2]
[403832376,1769574645020,-250.0,0.00017099,2]
[403832377,1769574645029,-1000.0,0.00017099,2]
[403832378,1769574645039,-250.0,0.00017099,2]
[403832379,1769574645050,-1000.0,0.00017099,2]
[403832380,1769574645060,-250.0,0.00017099,2]
[403832381,1769574645070,-1000.0,0.00017099,2]
[403832382,1769574645079,-151.0,0.00017099,2]
[403832383,1769574645090,-721.12765535,0.00017099,2]
[403832384,1769574645100,-14060.5727196,0.00017122,2]
[403832385,1769574645109,-500.0,0.00017128,2]
[403832386,1769574645120,-500.0,0.00017128,2]
[403832387,1769574645131,-500.0,0.00017128,2]
[403832388,1769574645140,-804.0,0.00017128,2]
[403832389,1769574645156,-500.0,0.00017128,2]
[403832390,1769574645166,-500.0,0.00017128,2]
[403832391,1769574645176,-500.0,0.00017128,2]
[403832392,1769574645186,-500.0,0.00017128,2]
[403832393,1769574645195,-217.15233878,0.00017154,2]
[403832394,1769574645204,-318.12146412,0.0001717,2]
[403832395,1769574645213,-500.0,0.00017183,2]
[403832396,1769574645223,-500.0,0.00017183,2]
[403832397,1769574645231,-150.0,0.00017183,2]
[403832398,1769574645242,-500.0,0.00017183,2]
[403832399,1769574645252,-804.0,0.00017183,2]
[403832400,1769574645261,-201.0,0.00017183,2]
[403832401,1769574645270,-201.0,0.00017185,2]
[403832402,1769574645279,-201.0,0.00017203,2]
[403832403,1769574645288,-225.18697532,0.00017209,2]
[403832404,1769574645297,-897.92,0.00017231,2]